fUSD/lending_fUSD_20240813
["ID","MTS","AMOUNT","RATE_DAILY","PERIOD"]
[334760167,1723536646361,-987.74,0.00016712,2]
[334760168,1723536646370,-500.0,0.00016712,2]
[334760169,1723536646379,-7784.29,0.00016712,2]
[334760170,1723536646388,-500.0,0.00016712,2]
[334760171,1723536646397,-1837.44,0.00016712,2]
[334760172,1723536646407,-186.44,0.00016712,2]
[334760173,1723536646417,-17250.1733978,0.0001673,3]
[334760174,1723536646427,-1646.38,0.0001674,2]
[334760175,1723536646436,-2639.81,0.0001674,2]
[334760176,1723536646446,-788.22,0.00016741,2]
[334760177,1723536646455,-381.16742542,0.00016741,2]
[334760178,1723536646465,-500.0,0.00016741,2]
[334760179,1723536646475,-200.11504732,0.00016741,2]
[334760180,1723536646486,-962.07,0.00016741,2]
[334760181,1723536646499,-500.0,0.00016741,2]
[334760182,1723536646509,-524.01,0.00016741,2]
[334760183,1723536646518,-500.0,0.00016741,2]
[334760184,1723536646528,-500.0,0.00016741,2]
[334760185,1723536646537,-167.0,0.00016876,2]
[334760186,1723536646547,-17250.1733978,0.00016946,3]
[334760187,1723536646558,-29727.7442596,0.00016957,3]
[334760188,1723536646567,-17250.1733978,0.00016957,3]
[334760189,1723536646577,-44591.6163894,0.00016966,3]
[334760190,1723536646588,-200.0,0.00016973,2]
[334760191,1723536646598,-500.0,0.00016985,2]
[334760192,1723536646608,-857.5,0.00016985,2]
[334760193,1723536646617,-527.92,0.00016986,2]
[334760194,1723536646627,-500.0,0.00016986,2]
[334760195,1723536646637,-916.56,0.00016986,2]
[334760196,1723536646647,-987.74,0.00016986,2]
[334760197,1723536646656,-500.0,0.00016986,2]
[334760198,1723536646666,-7784.29,0.00016986,2]
[334760199,1723536646676,-500.0,0.00016986,2]
[334760200,1723536646685,-1837.44,0.00016986,2]
[334760201,1723536646695,-17250.1733978,0.00017005,3]
[334760202,1723536646704,-1646.38,0.00017014,2]
[334760203,1723536646714,-2639.81,0.00017014,2]
[334760204,1723536646724,-788.22,0.00017015,2]
[334760205,1723536646734,-500.0,0.00017015,2]
[334760206,1723536646743,-962.07,0.00017015,2]
[334760207,1723536646753,-500.0,0.00017015,2]
[334760208,1723536646763,-524.01,0.00017015,2]
[334760209,1723536646772,-500.0,0.00017015,2]
[334760210,1723536646782,-500.0,0.00017015,2]
[334760211,1723536646792,-502.0,0.00017186,2]
[334760212,1723536646801,-500.0,0.00017259,2]
[334760213,1723536646811,-857.5,0.00017259,2]
[334760214,1723536646822,-527.92,0.0001726,2]
[334760215,1723536646832,-500.0,0.0001726,2]
[334760216,1723536646843,-916.56,0.0001726,2]
[334760217,1723536646907,-987.74,0.0001726,2]
[334760218,1723536646921,-500.0,0.0001726,2]
[334760219,1723536646931,-7784.29,0.0001726,2]
[334760220,1723536646941,-500.0,0.0001726,2]
[334760221,1723536646952,-1837.44,0.0001726,2]
[334760222,1723536646962,-1646.38,0.00017288,2]
[334760223,1723536646971,-2639.81,0.00017288,2]
[334760224,1723536646981,-788.22,0.00017289,2]
[334760225,1723536646991,-184.50268708,0.00017289,2]
[334760226,1723536647001,-962.07,0.00017289,2]
[334760227,1723536647010,-500.0,0.00017289,2]
[334760228,1723536647020,-524.01,0.00017289,2]
[334760229,1723536647029,-500.0,0.00017289,2]
[334760230,1723536647038,-500.0,0.00017289,2]
[334760231,1723536647047,-34500.3467955,0.00017375,3]
[334760232,1723536647056,-48428.56175972,0.00017385,2]
[334760233,1723536647065,-167.0,0.00017399,2]
[334760234,1723536647074,-998.86,0.0001741,2]
[334760235,1723536647084,-500.0,0.00017533,2]
[334760236,1723536647093,-857.5,0.00017533,2]
[334760237,1723536647102,-220.9037674,0.00017533,2]
[334760238,1723536647112,-527.92,0.00017534,2]
[334760239,1723536647122,-427.97,0.00017534,2]
[334760240,1723536647131,-916.56,0.00017534,2]
[334760241,1723536647141,-987.74,0.00017534,2]
[334760242,1723536647150,-500.0,0.00017534,2]
[334760243,1723536647160,-7784.29,0.00017534,2]
[334760244,1723536647169,-617.7319808,0.00017534,2]
[334760245,1723536647178,-1837.44,0.00017534,2]
[334760246,1723536647190,-1646.38,0.00017562,2]
[334760247,1723536647200,-2639.81,0.00017562,2]
[334760248,1723536647209,-788.22,0.00017563,2]
[334760249,1723536647218,-962.07,0.00017563,2]
[334760250,1723536647228,-500.0,0.00017563,2]
[334760251,1723536647238,-524.01,0.00017563,2]
[334760252,1723536647249,-264.54276234,0.00017563,2]
[334760253,1723536647258,-500.0,0.00017563,2]
[334760254,1723536647267,-179.4623719,0.00017608,2]
[334760255,1723536647278,-823.0,0.00017623,2]
[334760256,1723536647287,-155.0,0.00017636,2]
[334760257,1723536647298,-17250.1733978,0.00017797,3]
[334760258,1723536647307,-276.96,0.00017807,2]
[334760259,1723536647318,-500.0,0.00017807,2]
[334760260,1723536647327,-857.5,0.00017807,2]
[334760261,1723536647340,-527.92,0.00017808,2]
[334760262,1723536647350,-916.56,0.00017808,2]
[334760263,1723536647360,-987.74,0.00017808,2]
[334760264,1723536647369,-500.0,0.00017808,2]
[334760265,1723536647378,-7784.29,0.00017808,2]
[334760266,1723536647387,-1837.44,0.00017808,2]
[334760267,1723536647397,-962.07,0.00017836,2]
[334760268,1723536647406,-500.0,0.00017836,2]
[334760269,1723536647416,-524.01,0.00017836,2]
[334760270,1723536647425,-500.0,0.00017836,2]
[334760271,1723536647435,-1646.38,0.00017836,2]
[334760272,1723536647444,-2639.81,0.00017836,2]
[334760273,1723536647454,-788.22,0.00017837,2]
[334760274,1723536647465,-400.0,0.00017867,2]
[334760275,1723536647474,-167.0,0.00017921,2]
[334760276,1723536647484,-750.0,0.00018,2]
[334760277,1723536647494,-665.97527808,0.00018,30]
[334760278,1723536647503,-401.48618804,0.00018081,2]
[334760279,1723536647512,-857.5,0.00018081,2]
[334760280,1723536647522,-527.92,0.00018082,2]
[334760281,1723536647531,-916.56,0.00018082,2]
[334760282,1723536647540,-987.74,0.00018082,2]
[334760283,1723536647549,-500.0,0.00018082,2]
[334760284,1723536647559,-7784.29,0.00018082,2]
[334760285,1723536647568,-1837.44,0.00018082,2]
[334760286,1723536647577,-17250.1733978,0.000181,3]
[334760287,1723536647588,-2947.05743262,0.00018107,2]
[334760288,1723536647597,-962.07,0.0001811,2]
[334760289,1723536647606,-500.0,0.0001811,2]
[334760290,1723536647616,-524.01,0.0001811,2]
[334760291,1723536647625,-500.0,0.0001811,2]
[334760292,1723536647634,-1646.38,0.0001811,2]
[334760293,1723536647644,-2639.81,0.0001811,2]
[334760294,1723536647654,-788.22,0.00018111,2]
[334760295,1723536647664,-329.18,0.0001818,2]
[334760296,1723536647673,-544.96837812,0.00018234,2]
[334760297,1723536647683,-544.96837812,0.00018245,2]
[334760298,1723536647693,-544.96837812,0.00018246,2]
[334760299,1723536647702,-544.96837812,0.00018249,2]
[334760300,1723536647711,-11733.08727643,0.00018251,2]
[334760301,1723536647721,-544.96837812,0.0001826,2]
[334760302,1723536647731,-544.96837812,0.00018262,2]
[334760303,1723536647741,-544.96837812,0.00018276,2]
[334760304,1723536647750,-544.96837812,0.000183,2]
[334760305,1723536647760,-400.0,0.00018342,2]
[334760306,1723536647769,-857.5,0.00018355,2]
[334760307,1723536647779,-527.92,0.00018356,2]
[334760308,1723536647788,-916.56,0.00018356,2]
[334760309,1723536647797,-987.74,0.00018356,2]
[334760310,1723536647807,-500.0,0.00018356,2]
[334760311,1723536647816,-7784.29,0.00018356,2]
[334760312,1723536647825,-1837.44,0.00018356,2]
[334760313,1723536647835,-962.07,0.00018384,2]
[334760314,1723536647844,-500.0,0.00018384,2]
[334760315,1723536647853,-524.01,0.00018384,2]
[334760316,1723536647862,-500.0,0.00018384,2]
[334760317,1723536647871,-1646.38,0.00018384,2]
[334760318,1723536647880,-2639.81,0.00018384,2]
[334760319,1723536647889,-788.22,0.00018385,2]
[334760320,1723536647898,-17250.1733978,0.0001839,3]
[334760321,1723536647908,-2000.0,0.000184,2]
[334760322,1723536647920,-167.0,0.00018444,2]
[334760323,1723536647929,-998.86,0.00018615,2]
[334760324,1723536647938,-17250.1733978,0.00018628,3]
[334760325,1723536647947,-857.5,0.00018629,2]
[334760326,1723536647958,-527.92,0.0001863,2]
[334760327,1723536647967,-916.56,0.0001863,2]
[334760328,1723536647976,-987.74,0.0001863,2]
[334760329,1723536647985,-500.0,0.0001863,2]
[334760330,1723536647996,-7784.29,0.0001863,2]
[334760331,1723536648006,-1837.44,0.0001863,2]
[334760332,1723536648015,-48428.56175972,0.00018638,2]
[334760333,1723536648024,-17250.1733978,0.00018648,3]
[334760334,1723536648033,-962.07,0.00018658,2]
[334760335,1723536648043,-500.0,0.00018658,2]
[334760336,1723536648052,-524.01,0.00018658,2]
[334760337,1723536648061,-500.0,0.00018658,2]
[334760338,1723536648070,-1646.38,0.00018658,2]
[334760339,1723536648079,-2639.81,0.00018658,2]
[334760340,1723536648089,-788.22,0.00018659,2]
[334760341,1723536648099,-301.928688,0.00018673,2]
[334760342,1723536648108,-202.09974783,0.00018673,2]
[334760343,1723536648117,-857.5,0.00018903,2]
[334760344,1723536648126,-527.92,0.00018904,2]
[334760345,1723536648136,-916.56,0.00018904,2]
[334760346,1723536648145,-987.74,0.00018904,2]
[334760347,1723536648154,-294.49790858,0.00018904,2]
[334760348,1723536648163,-7784.29,0.00018904,2]
[334760349,1723536648173,-1837.44,0.00018904,2]
[334760350,1723536648182,-962.07,0.00018932,2]
[334760351,1723536648191,-500.0,0.00018932,2]
[334760352,1723536648200,-524.01,0.00018932,2]
[334760353,1723536648209,-500.0,0.00018932,2]
[334760354,1723536648219,-1646.38,0.00018932,2]
[334760355,1723536648228,-2639.81,0.00018932,2]
[334760356,1723536648238,-788.22,0.00018933,2]
[334760357,1723536648247,-164.14081487,0.00018982,2]
[334760358,1723536648255,-495.0,0.00019,2]
[334760359,1723536648265,-201.04032342,0.00019,2]
[334760360,1723536648275,-857.5,0.00019177,2]
[334760361,1723536648284,-527.92,0.00019178,2]
[334760362,1723536648293,-1000.0,0.00019178,2]
[334760363,1723536648302,-1000.0,0.00019178,2]
[334760364,1723536648311,-1000.0,0.00019178,2]
[334760365,1723536648320,-1000.0,0.00019178,2]
[334760366,1723536648329,-831.86285486,0.00019178,2]
[334760367,1723536648339,-916.56,0.00019178,2]
[334760368,1723536648348,-987.74,0.00019178,2]
[334760369,1723536648357,-7784.29,0.00019178,2]
[334760370,1723536648366,-1837.44,0.00019178,2]
[334760371,1723536648375,-765.06,0.000192,7]
[334760372,1723536648385,-962.07,0.00019206,2]
[334760373,1723536648394,-500.0,0.00019206,2]
[334760374,1723536648404,-524.01,0.00019206,2]
[334760375,1723536648413,-500.0,0.00019206,2]
[334760376,1723536648422,-1646.38,0.00019206,2]
[334760377,1723536648432,-2639.81,0.00019206,2]
[334760378,1723536648441,-788.22,0.00019207,2]
[334760379,1723536648451,-19959.33139551,0.000193,2]
[334760380,1723536648461,-1152.0,0.0001932,2]
[334760381,1723536648470,-1668.0,0.000194,2]
[334760382,1723536648480,-200.0,0.00019411,2]
[334760383,1723536648489,-857.5,0.00019451,2]
[334760384,1723536648498,-527.92,0.00019452,2]
[334760385,1723536648508,-916.56,0.00019452,2]
[334760386,1723536648517,-987.74,0.00019452,2]
[334760387,1723536648526,-7784.29,0.00019452,2]
[334760388,1723536648536,-1837.44,0.00019452,2]
[334760389,1723536648545,-962.07,0.0001948,2]
[334760390,1723536648555,-500.0,0.0001948,2]
[334760391,1723536648564,-524.01,0.0001948,2]
[334760392,1723536648574,-262.24777013,0.0001948,2]
[334760393,1723536648583,-1646.38,0.0001948,2]
[334760394,1723536648594,-2639.81,0.0001948,2]
[334760395,1723536648603,-788.22,0.00019481,2]
[334760396,1723536648613,-400.0,0.00019491,2]
[334760397,1723536648623,-1490.33438215,0.00019599,2]
[334760398,1723536648633,-1018.2969066,0.00019675,2]
[334760399,1723536648642,-857.5,0.00019725,2]
[334760400,1723536648652,-2386.36839346,0.00019725,2]
[334760401,1723536648662,-527.92,0.00019726,2]
[334760402,1723536648671,-916.56,0.00019726,2]
[334760403,1723536648680,-987.74,0.00019726,2]
[334760404,1723536648689,-7784.29,0.00019726,2]
[334760405,1723536648699,-1837.44,0.00019726,2]
[334760406,1723536648707,-962.07,0.00019754,2]
[334760407,1723536648717,-500.0,0.00019754,2]
[334760408,1723536648726,-524.01,0.00019754,2]
[334760409,1723536648733,-1646.38,0.00019754,2]
[334760410,1723536648742,-2639.81,0.00019754,2]
[334760411,1723536648752,-788.22,0.00019755,2]
[334760412,1723536648761,-13282.41830472,0.000198,2]
[334760413,1723536648770,-249.62271405,0.0001982,2]
[334760414,1723536648779,-998.86,0.0001982,2]
[334760415,1723536648788,-48428.56175972,0.0001989,2]
[334760416,1723536648797,-150.0,0.00019973,2]
[334760417,1723536648806,-252.61208377,0.00019998,2]
[334760418,1723536648815,-857.5,0.00019999,2]
[334760419,1723536648824,-800.0,0.0002,2]
[334760420,1723536648833,-1099.94283615,0.0002,2]
[334760421,1723536648845,-300.0,0.0002,2]
[334760422,1723536648854,-155.0,0.0002,2]
[334760423,1723536648863,-155.0,0.0002,2]
[334760424,1723536648872,-990.0,0.0002,2]
[334760425,1723536648881,-4953.0,0.0002,2]
[334760426,1723536648890,-155.0,0.0002,2]
[334760427,1723536648899,-2729.36932901,0.0002,2]
[334760428,1723536648910,-150.0,0.0002,2]
[334760429,1723536648920,-645.0,0.0002,2]
[334760430,1723536648930,-645.0,0.0002,2]
[334760431,1723536648939,-193.0,0.0002,2]
[334760432,1723536648948,-193.0,0.0002,2]
[334760433,1723536648959,-527.92,0.0002,2]
[334760434,1723536648968,-61634.1100053,0.0002,2]
[334760435,1723536648978,-150.0,0.0002,2]
[334760436,1723536648986,-14499.03104148,0.0002,2]
[334760437,1723536648996,-2000.0,0.0002,2]
[334760438,1723536649006,-2000.0,0.0002,2]
[334760439,1723536649015,-2000.0,0.0002,2]
[334760440,1723536649024,-2000.0,0.0002,2]
[334760441,1723536649033,-2000.0,0.0002,2]
[334760442,1723536649042,-2000.0,0.0002,2]
[334760443,1723536649051,-2000.0,0.0002,2]
[334760444,1723536649060,-2000.0,0.0002,2]
[334760445,1723536649069,-2000.0,0.0002,2]
[334760446,1723536649078,-2000.0,0.0002,2]
[334760447,1723536649089,-885.97083192,0.0002,2]
[334760448,1723536649099,-713.0,0.0002,2]
[334760449,1723536649108,-916.56,0.0002,2]
[334760450,1723536649117,-3105.08786872,0.0002,2]
[334760451,1723536649126,-3002.75591007,0.0002,2]
[334760452,1723536649135,-987.74,0.0002,2]
[334760453,1723536649143,-7784.29,0.0002,2]
[334760454,1723536649153,-465.49004723,0.0002,2]
[334760455,1723536649162,-845.93624862,0.0002,2]
[334760456,1723536649171,-1000.0,0.0002,2]
[334760457,1723536649180,-1837.44,0.0002,2]
[334760458,1723536649189,-156.45558059,0.0002,2]
[334760459,1723536649198,-1285.05011552,0.0002,2]
[334760460,1723536649207,-150.0,0.0002,5]
[334760461,1723536649216,-150.0,0.0002,2]
[334760462,1723536649225,-500.0,0.00020011,2]
[334760463,1723536649234,-500.0,0.00020018,2]
[334760464,1723536649243,-962.07,0.00020028,2]
[334760465,1723536649252,-605.65703701,0.00020028,2]
[334760466,1723536649261,-524.01,0.00020028,2]
[334760467,1723536649271,-1646.38,0.00020028,2]
[334760468,1723536649279,-2639.81,0.00020028,2]
[334760469,1723536649289,-788.28735976,0.00020029,2]
[334760470,1723536649298,-276.96,0.00020071,2]
[334760471,1723536649307,-600.0,0.00020091,2]
[334760472,1723536649316,-700.0,0.00020092,2]
[334760473,1723536649325,-500.0,0.00020109,2]
[334760474,1723536649335,-626.77938752,0.00020109,2]
[334760475,1723536649344,-676.43950239,0.0002012,2]
[334760476,1723536649353,-676.43950239,0.0002012,2]
[334760477,1723536649362,-500.0,0.00020134,2]
[334760478,1723536649372,-211.03413449,0.00020191,2]
[334760479,1723536649381,-547.87854217,0.00020191,2]
[334760480,1723536649390,-591.75256362,0.00020191,2]
[334760481,1723536649400,-500.0,0.00020195,2]
[334760482,1723536649408,-600.0,0.00020204,2]
[334760483,1723536649417,-700.0,0.00020262,2]
[334760484,1723536649427,-857.5,0.00020273,2]
[334760485,1723536649436,-527.92,0.00020274,2]
[334760486,1723536649445,-916.56,0.00020274,2]
[334760487,1723536649455,-987.74,0.00020274,2]
[334760488,1723536649464,-7784.29,0.00020274,2]
[334760489,1723536649473,-1837.44,0.00020274,2]
[334760490,1723536649483,-700.0,0.00020276,2]
[334760491,1723536649492,-500.0,0.000203,2]
[334760492,1723536649501,-962.22838283,0.00020302,2]
[334760493,1723536649510,-524.06214067,0.00020302,2]
[334760494,1723536649519,-1646.45147661,0.00020302,2]
[334760495,1723536649528,-2639.85649717,0.00020302,2]
[334760496,1723536649537,-500.0,0.00020338,2]
[334760497,1723536649546,-600.0,0.00020346,2]
[334760498,1723536649555,-1400.0,0.00020361,2]
[334760499,1723536649565,-500.0,0.00020377,2]
[334760500,1723536649574,-1198.59025782,0.0002038,2]
[334760501,1723536649584,-155.0,0.0002038,2]
[334760502,1723536649593,-500.0,0.00020415,2]
[334760503,1723536649603,-700.0,0.00020447,2]
[334760504,1723536649612,-472.23,0.00020447,2]
[334760505,1723536649623,-600.0,0.00020466,2]
[334760506,1723536649633,-351.55770122,0.00020521,2]
[334760507,1723536649642,-500.0,0.00020529,2]
[334760508,1723536649652,-700.0,0.00020544,2]
[334760509,1723536649662,-857.7137703,0.00020547,2]
[334760510,1723536649672,-173.07,0.00020548,2]
[334760511,1723536649681,-527.99398387,0.00020548,2]
[334760512,1723536649691,-916.5842415,0.00020548,2]
[334760513,1723536649700,-987.84761108,0.00020548,2]
[334760514,1723536649709,-7784.42613932,0.00020548,2]
[334760515,1723536649718,-1837.4560257,0.00020548,2]
[334760516,1723536649728,-700.0,0.00020627,2]
[334760517,1723536649737,-600.0,0.0002063,2]
[334760518,1723536649746,-500.0,0.00020676,2]
[334760519,1723536649755,-500.0,0.00020677,2]
[334760520,1723536649764,-500.0,0.00020738,2]
[334760521,1723536649773,-500.0,0.00020768,2]
[334760522,1723536649783,-700.0,0.0002079,2]
[334760523,1723536649793,-71249.0,0.00020795,2]
[334760524,1723536649802,-3625.0,0.00020795,2]
[334760525,1723536649811,-500.0,0.0002082,2]
[334760526,1723536649821,-155.0,0.00020821,2]
[334760527,1723536649831,-155.0,0.00020831,2]
[334760528,1723536649841,-500.0,0.00020836,2]
[334760529,1723536649850,-9342.0,0.00020904,2]
[334760530,1723536649859,-500.0,0.00020906,2]
[334760531,1723536649869,-500.0,0.00020945,2]
[334760532,1723536649878,-500.0,0.00020963,2]
[334760533,1723536649887,-500.0,0.00020975,2]
[334760534,1723536649897,-500.0,0.00020984,2]
[334760535,1723536649906,-700.0,0.00020996,2]
[334760536,1723536649920,-520.00094511,0.00021,2]
[334760537,1723536649929,-265.87,0.00021,2]
[334760538,1723536649939,-200.04747232,0.00021003,2]
[334760539,1723536649948,-998.86,0.00021025,2]
[334760540,1723536649958,-500.0,0.0002103,2]
[334760541,1723536649967,-500.0,0.00021031,2]
[334760542,1723536649976,-500.0,0.00021036,2]
[334760543,1723536649986,-463.44646323,0.00021103,3]
[334760544,1723536649996,-500.0,0.00021104,2]
[334760545,1723536650005,-363.81912547,0.00021107,2]
[334760546,1723536650016,-500.0,0.0002111,2]
[334760547,1723536650026,-700.0,0.00021123,2]
[334760548,1723536650035,-500.0,0.00021128,2]
[334760549,1723536650045,-48428.56175972,0.00021143,2]
[334760550,1723536650054,-1613.0,0.00021179,2]
[334760551,1723536650064,-500.0,0.00021241,2]
[334760552,1723536650074,-600.0,0.00021249,2]
[334760553,1723536650085,-600.0,0.00021263,2]
[334760554,1723536650094,-500.0,0.00021274,2]
[334760555,1723536650104,-500.0,0.00021286,2]
[334760556,1723536650114,-537.71720718,0.00021323,2]
[334760557,1723536650124,-1400.0,0.00021336,2]
[334760558,1723536650134,-500.0,0.00021344,2]
[334760559,1723536650144,-363.81912547,0.00021445,2]
[334760560,1723536650155,-500.0,0.00021487,2]
[334760561,1723536650167,-500.0,0.00021579,2]
[334760562,1723536650177,-500.0,0.00021637,2]
[334760563,1723536650187,-500.0,0.00021663,2]
[334760564,1723536650198,-700.0,0.0002168,2]
[334760565,1723536650208,-500.0,0.0002174,2]
[334760566,1723536650218,-1400.0,0.0002174,2]
[334760567,1723536650228,-600.0,0.00021754,2]
[334760568,1723536650237,-500.0,0.00021774,2]
[334760569,1723536650247,-500.0,0.00021783,2]
[334760570,1723536650256,-500.0,0.00021792,2]
[334760571,1723536650266,-363.81912547,0.00021793,2]
[334760572,1723536650275,-500.0,0.00021801,2]
[334760573,1723536650284,-600.0,0.00021806,2]
[334760574,1723536650294,-500.0,0.0002181,2]
[334760575,1723536650303,-500.0,0.00021818,2]
[334760576,1723536650312,-500.0,0.0002182,2]
[334760577,1723536650321,-500.0,0.00021827,2]
[334760578,1723536650331,-500.0,0.00021836,2]
[334760579,1723536650341,-500.0,0.00021845,2]
[334760580,1723536650351,-500.0,0.00021854,2]
[334760581,1723536650360,-500.0,0.00021862,2]
[334760582,1723536650369,-50000.0,0.0002187,4]
[334760583,1723536650378,-500.0,0.00021871,2]
[334760584,1723536650387,-500.0,0.00021873,2]
[334760585,1723536650397,-500.0,0.0002188,2]
[334760586,1723536650406,-500.0,0.0002188,2]
[334760587,1723536650416,-700.0,0.00021896,2]
[334760588,1723536650425,-2500.0,0.000219,2]
[334760589,1723536650435,-200.0,0.000219,2]
[334760590,1723536650444,-500.0,0.000219,2]
[334760591,1723536650454,-770.0,0.000219,2]
[334760592,1723536650463,-650.0,0.000219,2]
[334760593,1723536650472,-3163.94,0.000219,2]
[334760594,1723536650482,-3184.0,0.00021918,2]
[334760595,1723536650492,-150.0,0.00021918,2]
[334760596,1723536650501,-434.1,0.00021918,2]
[334760597,1723536650511,-500.0,0.00021918,2]
[334760598,1723536650520,-500.0,0.00021918,2]
[334760599,1723536650530,-500.0,0.00021918,2]
[334760600,1723536650539,-500.0,0.00021918,2]
[334760601,1723536650548,-500.0,0.00021918,2]
[334760602,1723536650558,-500.0,0.00021918,2]
[334760603,1723536650567,-500.0,0.00021918,2]
[334760604,1723536650577,-500.0,0.00021918,2]
[334760605,1723536650588,-500.0,0.00021918,2]
[334760606,1723536650597,-500.0,0.00021918,2]
[334760607,1723536650606,-500.0,0.00021918,2]
[334760608,1723536650617,-500.0,0.00021918,2]
[334760609,1723536650626,-164.14081487,0.00021941,2]
[334760610,1723536650635,-500.0,0.00021999,2]
[334760611,1723536650644,-850.0,0.00022,2]
[334760612,1723536650653,-150.0,0.00022,4]
[334760613,1723536650662,-1400.0,0.00022005,2]
[334760614,1723536650673,-394.05542998,0.00022083,2]
[334760615,1723536650682,-1400.0,0.00022148,2]
[334760616,1723536650691,-500.0,0.00022153,2]
[334760617,1723536650701,-363.81912547,0.00022167,2]
[334760618,1723536650711,-154.96,0.00022174,2]
[334760619,1723536650720,-600.0,0.00022194,2]
[334760620,1723536650729,-363.81912547,0.00022213,2]
[334760621,1723536650740,-700.0,0.00022216,2]
[334760622,1723536650750,-998.86,0.0002223,2]
[334760623,1723536650759,-500.0,0.0002224,2]
[334760624,1723536650768,-1400.0,0.00022245,2]
[334760625,1723536650777,-500.0,0.0002226,2]
[334760626,1723536650787,-1400.0,0.00022269,2]
[334760627,1723536650796,-9871.0,0.000223,2]
[334760628,1723536650805,-1598.0,0.000223,2]
[334760629,1723536650815,-618.90552502,0.00022309,2]
[334760630,1723536650824,-394.05542998,0.00022332,2]
[334760631,1723536650833,-1400.0,0.00022334,2]
[334760632,1723536650843,-276.96,0.00022335,2]
[334760633,1723536650852,-500.0,0.00022352,2]
[334760634,1723536650863,-500.0,0.00022355,2]
[334760635,1723536650874,-500.0,0.00022358,2]
[334760636,1723536650883,-500.0,0.00022365,2]
[334760637,1723536651001,-1400.0,0.00022366,2]
[334760638,1723536651011,-48428.56175972,0.00022395,2]
[334760639,1723536651020,-500.0,0.000224,2]
[334760640,1723536651030,-700.0,0.00022406,2]
[334760641,1723536651039,-500.0,0.00022414,2]
[334760642,1723536651048,-500.0,0.00022424,2]
[334760643,1723536651057,-943.47231134,0.00022425,2]
[334760644,1723536651066,-500.0,0.00022456,2]
[334760645,1723536651075,-1000.0,0.00022466,2]
[334760646,1723536651085,-500.0,0.00022472,2]
[334760647,1723536651104,-150.0,0.00022495,2]
[334760648,1723536651113,-500.0,0.00022498,2]
[334760649,1723536651122,-1400.0,0.00022516,2]
[334760650,1723536651130,-293.94824322,0.00022524,2]
[334760651,1723536651140,-1400.0,0.00022547,2]
[334760652,1723536651150,-555.59437562,0.00022557,2]
[334760653,1723536651160,-500.0,0.00022562,2]
[334760654,1723536651169,-500.0,0.00022596,2]
[334760655,1723536651179,-500.0,0.00022632,2]
[334760656,1723536651188,-940.06522729,0.00022634,2]
[334760657,1723536651197,-394.05542998,0.00022683,2]
[334760658,1723536651206,-800.0,0.00022687,2]
[334760659,1723536651215,-363.81912547,0.00022689,2]
[334760660,1723536651224,-500.0,0.00022708,2]
[334760661,1723536651233,-500.0,0.00022748,2]
[334760662,1723536651242,-500.0,0.00022797,2]
[334760663,1723536651251,-3163.94,0.000228,7]
[334760664,1723536651260,-2500.0,0.00022812,5]
[334760665,1723536651270,-500.0,0.0002282,2]
[334760666,1723536651279,-199.59331863,0.00022839,2]